{"text_format":"1","workbook":"xlsx","n_sheets":7,"sheets":["1) Kumulativní rozpočet","KR zdroj","KR výstup","2) Stanovení jednotkové podpory","SJP Pomocné hodnoty","3) Výsledná podpora v AIS","VP pomocné hodnoty"],"not_rendered":{"charts":0,"images":7,"macros":1,"external_links":1,"defined_names":19,"comments":4,"pivot_tables":0},"unopened":[],"bounds":{"document_bytes":16777216,"sheet_cells":100000,"rows_first":2000,"rows_last":500,"rows_between":2000,"halvings":0,"cell_chars":16384,"cell_head_chars":4096},"cells_cut":0,"cells_raw":0,"read":"whole","date_system":"1900"}

{"sheet":"1) Kumulativní rozpočet","index":0,"n_rows":60,"n_cols":10,"rows_kept":60,"cut":false,"hidden":false,"merged":[[1,1,1,6],[14,3,14,6],[21,6,26,8],[2,3,2,5],[4,2,4,5],[4,8,4,9],[5,2,5,5],[5,8,5,9],[16,3,16,8]]}
[null,null,null,null,null,null,null,null,"verze 30. 9. 2025"]
[null,"NPŽP - Kumulativní rozpočet projektu"]
[null,null,"Editujte pouze zelená pole nebo použijte výběrová tlačítka","Důležité informace jsou označeny v komentáři u daných buněk."]
[]
[null,"Název žadatele:"]
[null,"Název projektu:"]
[]
[null,"DPH uznatelnost:"]
[null,null,null,null,null,null," "]
[null,"Souhrnný rozpočet"]
[null,null,null,"Výdaje bez DPH","DPH %","Výdaje s DPH","Nezpůsobilá část z celkových výdajů stanovená žadatelem (bez DPH)","Nezpůsobilá část celkem","Způsobilé výdaje po zohlednění limitů způsobilých nákladů a způsobilosti DPH"]
[null,"Realizace","Výdaje na realizaci",null,21,{"$f":"D12*(1+(E12/100))","v":0},0,{"$f":"CHOOSE('KR zdroj'!$P$26,G12*(1+('1) Kumulativní rozpočet'!E12/100)),D12*(E12/100)+G12,G12*(1+('1) Kumulativní rozpočet'!E12/100)),\"vyber uznatelnost DPH\")","v":0},{"$f":"IFERROR(F12-H12,\"zadej výdaje/uznatelnost DPH\")","v":0}]
[null,null,"Celkem",{"$f":"SUM(D12:D12)","v":0},null,{"$f":"SUM(F12:F12)","v":0},null,{"$f":"SUM(H12:H12)","v":0},{"$f":"IFERROR(I12,\"zadej výdaje/uznatelnost DPH\")","v":0}," = Celk. zp. výdaje (realizace)"]
[null,null,null,null,null,null,null,null,{"$f":"IFERROR(I12,\"zadej výdaje/uznatelnost DPH\")","v":0}," = Celk. zp. přímé realizační výdaje"]
[null,null,null,null,null,null,null,null,{"$f":"IFERROR(I14*'KR zdroj'!P30,0)","v":0},"moje ctrl - vymazat"]
[null,null,null,null,null,null,null,null,{"$f":"CHOOSE('KR zdroj'!$P$26,$D$17,$D$17*(1+($E$12/100)),$D$17,0)","v":0}]
[null,"PP + TDI + AD + BOZP + publicita","Nepřímé výdaje",{"$f":"IF(OR(J17<=15000000,J17=\"zadej výdaje/uznatelnost DPH\"),J17,15000000)","v":0},null,null,null,null,null,{"$f":"IFERROR('KR zdroj'!P32*'1) Kumulativní rozpočet'!I14,\"zadej výdaje/uznatelnost DPH\")","v":0}]
[]
[null,null,null,{"$f":"CHOOSE('KR zdroj'!P2,0,0,0,0,0,'1) Kumulativní rozpočet'!D18,'1) Kumulativní rozpočet'!D18,'1) Kumulativní rozpočet'!D18,'1) Kumulativní rozpočet'!D18,'1) Kumulativní rozpočet'!D18,'1) Kumulativní rozpočet'!D18,'1) Kumulativní rozpočet'!D18,'1) Kumulativní rozpočet'!D18,'1) Kumulativní rozpočet'!D18,0,'1) Kumulativní rozpočet'!D18,'1) Kumulativní rozpočet'!D18,0,0,'1) Kumulativní rozpočet'!D18)","v":0},null,{"$f":"(D19)*(1+(E12/100))","v":0},null,{"$f":"CHOOSE('KR zdroj'!P2,0,0,0,0,0,'1) Kumulativní rozpočet'!H18,'1) Kumulativní rozpočet'!H18,'1) Kumulativní rozpočet'!H18,'1) Kumulativní rozpočet'!H18,'1) Kumulativní rozpočet'!H18,'1) Kumulativní rozpočet'!H18,'1) Kumulativní rozpočet'!H18,'1) Kumulativní rozpočet'!H18,'1) Kumulativní rozpočet'!H18,0,'1) Kumulativní rozpočet'!H18,'1) Kumulativní rozpočet'!H18,0,0,'1) Kumulativní rozpočet'!H18)","v":0},0]
[null,{"$f":"IF(D20=\"zadej výdaje/DPH\",0,D20)","v":0},"Celkové výdaje projektu",{"$f":"IFERROR(IF(F13+I16+F19=0,\"zadej výdaje/DPH\",F13+I16+F19),\"zadej výdaje/DPH\")","v":"zadej výdaje/DPH"}]
[null,null,"Celkové způsobilé výdaje projektu",{"$f":"IFERROR(IF(ROUND(I13+D17+I19,0)=0,\"zadej výdaje/DPH\",ROUND(I13+D17+I19,0)),\"zadej výdaje/DPH\")","v":"zadej výdaje/DPH"},null,null,"Komentář ke stanoveným nezpůsobilým výdajům:"]
[null,null,"Celkové nezpůsobilé výdaje projektu",{"$f":"IFERROR(ROUND(D20-D21,0),\"zadej výdaje/DPH\")","v":"zadej výdaje/DPH"},null,null,"zde vepište případný komentář k nezpůsobilým výdajům"]
[]
[]
[]
[]
[null,null,"Zpracoval","………………………………..",{"$f":"TODAY()","v":"2025-12-05"}]
[]
[]
[]
[]
[]
[]
[]
[null,null,"Opatření - vyberte všechna další Opatření na projektu"]
[null,"hlavní Opatření dle KR","Vyber nejprve Specifický cíl a poté hlavní Opatření projektu",null,null,null,null," "]
[null,null,"vyber Opatření #2",null,null,{"$f":"IF(C36=C37,\"Duplicita Opatření\",\"\")","v":""},null," "]
[null,null,"vyber Opatření #3",null,null,{"$f":"IF(OR(C36=C38,C37=C38),\"Duplicita Opatření\",\"\")","v":""},null," "]
[null,null,"vyber Opatření #4",null,null,{"$f":"IF(OR(C39=C38,C39=C37,C39=C36),\"Duplicita Opatření\",\"\")","v":""},null," "]
[null,null,"vyber Opatření #5",null,null,{"$f":"IF(OR(C38=C40,C40=C39,C40=C37,C40=C36),\"Duplicita Opatření\",\"\")","v":""},null," "]
[null,null,"vyber Opatření #6",null,null,{"$f":"IF(OR(C41=C40,C41=C39,C41=C38,C41=C37,C41=C36),\"Duplicita Opatření\",\"\")","v":""},null," "]
[null,null,"vyber Opatření #7",null,null,{"$f":"IF(OR(C42=C41,C42=C40,C42=C39,C42=C38,C42=C37,C42=C36),\"Duplicita Opatření\",\"\")","v":""},null," "]
[null,null,"vyber Opatření #8",null,null,{"$f":"IF(OR($C$41=C43,$C$42=C43,$C$40=C43,$C$39=C43,$C$38=C43,$C$37=C43,$C$36=C43),\"Duplicita Opatření\",\"\")","v":""},null," "]
[null,null,"vyber Opatření #9",null,null,{"$f":"IF(OR($C$43=C44,$C$41=C44,$C$42=C44,$C$40=C44,$C$39=C44,$C$38=C44,$C$37=C44,$C$36=C44),\"Duplicita Opatření\",\"\")","v":""},null," "]
[null,null,"vyber Opatření #10",null,null,{"$f":"IF(OR($C$44=C45,$C$43=C45,$C$41=C45,$C$42=C45,$C$40=C45,$C$39=C45,$C$38=C45,$C$37=C45,$C$36=C45),\"Duplicita Opatření\",\"\")","v":""},null," "]
[null,null,"vyber Opatření #11",null,null,{"$f":"IF(OR(C45=C46,$C$44=C46,$C$43=C46,$C$41=C46,$C$42=C46,$C$40=C46,$C$39=C46,$C$38=C46,$C$37=C46,$C$36=C46),\"Duplicita Opatření\",\"\")","v":""},null," "]
[null,null,null,null,null,null,null," "]
[null,null,"Aktivity - vyberte všechny další Aktivity na projektu"]
[null,"hlavní Aktivita z KR","irelevantní",null,null,null,null," "]
[null,null,"vyber Aktivitu #2",null,null,null,{"$f":"IF(C50=C49,\"Duplicita Aktivit\",\"\")","v":""}," "]
[null,null,"vyber Aktivitu #3",null,null,null,{"$f":"IF(OR(C51=$C$50,C51=$C$49),\"Duplicita Aktivit\",\"\")","v":""}," "]
[null,null,"vyber Aktivitu #4",null,null,null,{"$f":"IF(OR(C52=$C$51,C52=$C$50,C52=$C$49),\"Duplicita Aktivit\",\"\")","v":""}," "]
[null,null,"vyber Aktivitu #5",null,null,null,{"$f":"IF(OR(C53=$C$52,C53=$C$51,C53=$C$50,C53=$C$49),\"Duplicita Aktivit\",\"\")","v":""}," "]
[null,null,null,null,null,null,null," "]
[null,null,"Podaktivity - vyberte všechny další Podaktivity na projektu"]
[null,"hlavní Podaktivita z KR","irelevantní",null,null,null,null," "]
[null,null,"vyber Podaktivitu #2",null,null,null,null,{"$f":"IF(C57=C56,\"Duplicita Podaktivit\",\"\")","v":""}]
[null,null,"vyber Podaktivitu #3",null,null,null,null,{"$f":"IF(OR(C58=C57,C58=C56),\"Duplicita Podaktivit\",\"\")","v":""}]
[null,null,"vyber Podaktivitu #4",null,null,null,null,{"$f":"IF(OR(C59=C58,C59=C57,C59=C56),\"Duplicita Podaktivit\",\"\")","v":""}]
[null,null,null,null,null,null,null," "]

{"sheet":"KR zdroj","index":1,"n_rows":83,"n_cols":20,"rows_kept":83,"cut":false,"hidden":true,"merged":[]}
[{"$f":"OR(C10=2,C10=3,C10=5,C10=6,C10=11)","v":false},null,1,"Vyber Specifický cíl",null,null,null,null,null,null,null,{"$f":"CHOOSE($C$1,1,0,0,0,0,0,0)","v":1},"Vyber nejprve Specifický cíl a poté hlavní Opatření projektu","1_1",null,null,null,"paušál PP"]
[{"$f":"AND(A1=TRUE,C1=6)","v":false},null,2,"1.1 Podpora energetické účinnosti a snižování emisí skleníkových plynů",null,null,null,null,null,null,null,1,"1.1.1 Snížení energetické náročnosti veřejných budov a veřejné infrastruktury","2_1",{"$f":"IF(OR(AND(P2>5,P2<15),P2=16,P2=17,P2=20),1,0)","v":0},1,"mimo Veřejnou podporu",1]
[null,null,null,"1.2 Podpora energie z obnovitelných zdrojů v souladu se směrnicí (EU) 2018/2001, včetně kritérií udržitelnosti stanovených v uvedené směrnici",null,null,null,null,null,null,null,2,"1.1.2 Snížení energetické náročnosti/zvýšení účinnosti technologických procesů","2_2",null,null,"de minimis 360/2012 ",2,null," "]
[null,null,null,"1.3 Podpora přizpůsobení se změně klimatu, prevence rizika katastrof a odolnosti vůči nim s přihlédnutím k ekosystémovým přístupům",null,null,null,null,null,null,null,3,"1.1.3 Zlepšení kvality vnitřního prostředí veřejných budov","2_3",null,null,"de minimis 1407/2013 ",3,null," "]
[null,null,null,"1.4 Podpora přístupu k vodě a udržitelného hospodaření s vodou",null,null,null,null,null,null,null,4,"1.1.4 Zvýšení adaptability veřejných budov na změnu klimatu","2_4",null,null,"de minimis 1408/2013 ",4,null," "]
[null,null,null,"1.5 Podpora přechodu na oběhové hospodářství účinně využívající zdroje",null,null,null,null,null,null,null,5,"1.1.5 Výstavba nových veřejných budov, které budou splňovat parametry pro pasivní nebo plusové budovy","2_5",null,null,"de minimis 717/2014 ",5,null," "]
[null,null,null,"1.6 Posilování ochrany a zachování přírody, biologické rozmanitosti a zelené infrastruktury, a to i v městských oblastech, a snižování všech forem znečištění",null,null,null,null,null,null,null,6,"1.2.1 Výstavba a rekonstrukce obnovitelných zdrojů energie pro veřejné budovy","3_1",null,null,"GBER článek 14",null,null," "]
[null,null,null,null,null,null,null,null,null,null,null,7,"1.2.2 Výstavba a rekonstrukce obnovitelných zdrojů energie pro zajištění dodávek systémové energie ve veřejném sektoru","3_2",null,null,"GBER ŽP článek 36"]
[null,null,null,null,null,null,null,null,null,null,null,8,"1.2.3 Výměna nevyhovujících spalovacích zdrojů na tuhá paliva a pořizování domovních předávacích stanic","3_3",null,null,"GBER ŽP článek 38"]
[null,null,4,{"$f":"CHOOSE($C$1,$M$1,M2,M7,M10,M20,M25,M36)","v":"Vyber nejprve Specifický cíl a poté hlavní Opatření projektu"},null,null,null,null,null,null,null,9,"1.3.1 Podpora přírodě blízkých opatření v krajině a sídlech","4_1",null,null,"GBER ŽP článek 40"]
[null,null,null,{"$f":"CHOOSE($C$1,$M$1,M3,M8,M11,M21,M26,M37)","v":"Vyber nejprve Specifický cíl a poté hlavní Opatření projektu"},null,null,null,null,null,null,null,10,"1.3.2 Zpracování studií a plánů (studie systémů sídelní zeleně, územní studie krajiny, plán územního systému ekologické stability)","4_2",null,null,"GBER ŽP článek 41",null,null," "]
[null,null,null,{"$f":"CHOOSE($C$1,$M$1,M4,M9,M12,M22,M27,M38)","v":"Vyber nejprve Specifický cíl a poté hlavní Opatření projektu"},null,null,null,null,null,null,null,11,"1.3.3 Realizace protipovodňových opatření","4_3",null,null,"GBER ŽP článek 45",null,null," "]
[null,null,null,{"$f":"CHOOSE($C$1,$M$1,M5,\"irelevantní\",M13,M23,M28,M39)","v":"Vyber nejprve Specifický cíl a poté hlavní Opatření projektu"},null,null,null,null,null,null,null,12,"1.3.4 Realizace opatření ke zpomalení odtoku, pro vsak, retenci a akumulaci srážkové vody vč. jejího dalšího využití; realizace zelených střech; opatření na využití šedé vody; opatření pro řízenou dotaci podzemních vod","4_4",null,null,"GBER ŽP článek 46"]
[null,null,null,{"$f":"CHOOSE($C$1,$M$1,M6,\"irelevantní\",M14,M24,M29,M40)","v":"Vyber nejprve Specifický cíl a poté hlavní Opatření projektu"},null,null,null,null,null,null,null,13,"1.3.5 Podpora preventivních opatření proti povodním a suchu, zejména budování, rozšíření, zkvalitnění a obnova monitorovacích, předpovědních, hlásných, výstražných a varovných systémů; zpracování digitálních povodňových plánů, zpracování analýzy odtokových poměrů ","4_5",null,null,"GBER ŽP článek 47"]
[null,null,null,{"$f":"CHOOSE($C$1,$M$1,\"irelevantní\",\"irelevantní\",M15,\"irelevantní\",M30,M41)","v":"Vyber nejprve Specifický cíl a poté hlavní Opatření projektu"},null,null,null,null,"kurz euro Kč",null,null,14,"1.3.6 Podpora povodňové operativy, zvyšování povědomí obyvatel o povodňovém riziku, zvyšování resilience citlivých objektů před povodněmi","4_6",null,null,"GBER ŽP článek 49"]
[null,null,null,{"$f":"CHOOSE($C$1,$M$1,\"irelevantní\",\"irelevantní\",M16,\"irelevantní\",M31,M42)","v":"Vyber nejprve Specifický cíl a poté hlavní Opatření projektu"},null,null,null,null,24.739000000000001,null,null,15,"1.3.7 Monitoring a rebilance dlouhodobě využitelných zdrojů podzemních vod pro obce v krystaliniku Českého masivu","4_7",null,null,"GBER článek 53, kulturní infrastruktura ",15]
[null,null,null,{"$f":"CHOOSE($C$1,$M$1,\"irelevantní\",\"irelevantní\",M17,\"irelevantní\",M32,M43)","v":"Vyber nejprve Specifický cíl a poté hlavní Opatření projektu"},null,null,null,null,null,null,null,16,"1.3.8 Obnova stability svahů, stabilizace a sanace extrémních svahových nestabilit vzniklých v důsledku přírodních jevů","4_8",null,null,"GBER článek 55, sportovní infrastruktura"]
[null,null,null,{"$f":"CHOOSE($C$1,$M$1,\"irelevantní\",\"irelevantní\",M18,\"irelevantní\",M33,\"irelevantní\")","v":"Vyber nejprve Specifický cíl a poté hlavní Opatření projektu"},null,null,null,null,null,null,null,17,"1.3.9 Investice do modernizace vzdělávacích environmentálních center zaměřených na změnu klimatu","4_9",null,null,"GBER článek 56, lokální infrastruktura"]
[null,null,null,{"$f":"CHOOSE($C$1,$M$1,\"irelevantní\",\"irelevantní\",M19,\"irelevantní\",M34,\"irelevantní\")","v":"Vyber nejprve Specifický cíl a poté hlavní Opatření projektu"},null,null,null,null,null,null,null,18,"1.3.10 Prevence a řízení antropogenních rizik","4_10",null,null,"SGEI Rozhodnutí Komise ",18]
[null,null,null,{"$f":"CHOOSE($C$1,$M$1,\"irelevantní\",\"irelevantní\",\"irelevantní\",\"irelevantní\",M35,\"irelevantní\")","v":"Vyber nejprve Specifický cíl a poté hlavní Opatření projektu"},null,null,null,null,null,null,null,19,"1.4.1 Výstavba čistíren odpadních vod; dobudování a výstavba kanalizaci ","5_1",null,null,"SGEI Nařízení Evropského parlamentu a Rady (ES) č. 1370/2007 – Doprava ",19]
[null,null,null,null,null,null,null,null,null,null,null,20,"1.4.2 Intenzifikace čistíren odpadních vod za účelem zvýšeného odstraňování specifického znečištění","5_2",null,null,"Pokyny AGRI, Prevence škod způsobených zvláště chráněnými živočišnými druhy "]
[null,null,null,null,null,null,null,null,null,null,null,21,"1.4.3 Opatření omezující vypouštění odpadních vod z odlehčení na kanalizaci (akumulační nádrže, retenční nádrže, chemické předčištění apod.)","5_3"]
[null,{"$f":"IF(AND(C1=4,C10=1),9,IF(AND(C1=7,C10=1),35,IF(AND(C1=7,C10=2),36,0)))","v":0},2,{"$f":"IF($B$23=9,D31,IF($B$23=35,D36,IF($B$23=36,D41,\"irelevantní\")))","v":"irelevantní"},null,null,null,null,null,null,null,22,"1.4.4 Výstavba a modernizace vodovodních přivaděčů a vodovodních řadů; výstavba úpraven vody; výstavba, intenzifikace nebo revitalizace stávajících vodních zdrojů","5_4"]
[null,1,null,{"$f":"IF($B$23=9,D32,IF($B$23=35,D37,IF($B$23=36,D42,\"irelevantní\")))","v":"irelevantní"},null,null,null,null,null,null,null,23,"1.4.5 Intenzifikace úpraven pitné vody","5_5"]
[null,null,null,{"$f":"IF($B$23=9,D33,IF($B$23=35,D38,\"irelevantní\"))","v":"irelevantní"},null,null,null,null,null,null,null,24,"1.5.1 Kompostéry pro předcházení vzniku komunálních odpadů","6_1"]
[null,null,null,{"$f":"IF($B$23=9,D34,IF($B$23=35,D39,\"irelevantní\"))","v":"irelevantní"},null,null,null,null,null,null,null,25,"1.5.2 RE-USE centra pro opětovné použití výrobků včetně aktivit pro opravy a prodlužování životnosti výrobků, podpora prevence vzniku odpadu","6_2",null,2,"DPH uznatelné"]
[null,null,null,{"$f":"IF($B$23=9,D35,IF($B$23=35,D40,\"irelevantní\"))","v":"irelevantní"},null,null,null,null,null,null,null,26,"1.5.3 Budování infrastruktury potravinových bank","6_3",null,null,"DPH neuznatelné"]
[null,null,null,null,null,null,null,null,null,null,null,27,"1.5.4 Podpora prevence vzniku odpadů z jednorázového nádobí nebo jednorázových obalů","6_4",null,null,"DPH uznatelné = Jsem plátce DPH a nemám zákonný nárok na odpočet DPH ve vztahu k aktivitám projektu"]
[null,null,null,null,null,null,null,null,null,null,null,28,"1.5.5 Výstavba a modernizace sběrných dvorů, doplnění a zefektivnění systému odděleného sběru/svozu zejména komunálních odpadů včetně podpory door-to-door systémů a zavádění systémů PAYT (\"Pay-as-You-Throw\")","6_5",null,null,"Vyber"]
[null,null,null,"vyber Aktivitu",null,null,null,null,null,null,null,29,"1.5.6 Podpora třídících a dotřiďovacích systémů (včetně úpravy) pro separaci ostatních odpadů","6_6",null,{"$f":"IF('1) Kumulativní rozpočet'!I14>10000000,\"0,035\",IF('1) Kumulativní rozpočet'!I14>3000000,\",05\",\",07\"))","v":",07"},"%PP","7% pod 3 mil"]
[null,null,"9_1","1.3.1.1 Tvorba nových a obnova stávajících přírodě blízkých vodních prvků v krajině včetně sídel",null,null,null,null,null,null,null,30,"1.5.7 Budování zařízení pro úpravu a zpracování čistírenských odpadních kalů z čistíren odpadních vod včetně úpravy vyčištěných odpadních vod pro jejich opětovné využívání","6_7",null,null,null,"5% 3 až 10 mil"]
[null,null,"9_2","1.3.1.2 Tvorba nových a obnova stávajících vegetačních prvků a struktur, včetně opatření proti vodní a větrné erozi",null,null,null,null,null,null,null,31,"1.5.8 Výstavba a modernizace zařízení pro materiálové využití odpadů","6_8",null,{"$f":"IF(OR(C1=4,C1=7),P33,P30)","v":",07"},null,"3,5% nad 10 mil"]
[null,null,null,"1.3.1.3 Úprava lesních porostů směrem k přirozené struktuře a druhové skladbě za účelem posílení jejich stability",null,null,null,null,null,null,null,32,"1.5.9 Výstavba a modernizace zařízení pro energetické využití odpadů, včetně bioplynových stanic pro zpracování odpadů","6_9",null,{"$f":"IF('1) Kumulativní rozpočet'!I14>10000000,\"0,05\",\",07\")","v":",07"},null,"7% do 10 mil"]
[null,null,null,"1.3.1.4 Zakládání a obnova veřejné sídelní zeleně",null,null,null,null,null,null,null,33,"1.5.10 Budování a modernizace zařízení pro chemickou recyklaci odpadů","6_10",null,"SC 1.3, 1.6",null,"5% nad 10 mil"]
[null,null,null,"1.3.1.5 Odstranění či eliminace negativních funkcí odvodňovacích zařízení v krajině",null,null,null,null,null,null,null,34,"1.5.11 Budování a modernizace zařízení pro sběr a nakládání s nebezpečnými odpady","6_11",null,1,"irelevantní"]
[null,null,"35_1","1.6.1.1 Péče o přírodní stanoviště a druhy, opatření na podporu ohrožených druhů",null,null,null,null,null,null,null,35,"1.6.1 Podpora přírodních stanovišť a druhů a péče o nejcennější části přírody a krajiny","7_1",null,null,"Malý podnik"]
[null,null,null,"1.6.1.2 Péče o chráněná území (přírodní dědictví) ",null,null,null,null,null,null,null,36,"1.6.2 Zprůchodnění migračních překážek pro živočichy","7_2",null,null,"Střední podnik"]
[null,null,null,"1.6.1.3 Omezení šíření invazních nepůvodních a expanzivních druhů",null,null,null,null,null,null,null,37,"1.6.3 Modernizace a rozvoj záchranných stanic a záchranných center CITES pro ohrožené druhy živočichů","7_3",null,null,"Velký podnik"]
[null,null,null,"1.6.1.4 Monitoring ekosystémů, stanovišť a druhů, sběr podkladů, zpracování koncepčních dokumentů pro péči o chráněná území, zajištění územní ochrany chráněných území (přírodního dědictví",null,null,null,null,null,null,null,38,"1.6.4 Náhrada nebo rekonstrukce stacionárních zdrojů znečišťování ovzduší včetně realizace dodatečných technologií a změny technologických postupů","7_4"]
[null,null,null,"1.6.1.5 Návštěvnická infrastruktura sloužící k usměrnění návštěvníků v chráněných územích a zvýšení povědomí o problematice ochrany přírody",null,null,null,null,null,null,null,39,"1.6.5 Pořízení a modernizace systémů pro posuzování a vyhodnocení úrovně znečištění ovzduší a souvisejících meteorologických aspektů a pořízení a modernizace systémů pro archivaci a zpracování údajů o znečišťování ovzduší","7_5",null,{"$f":"CHOOSE(P26,'1) Kumulativní rozpočet'!F18-'1) Kumulativní rozpočet'!G18*(1+('1) Kumulativní rozpočet'!E18/100)),'1) Kumulativní rozpočet'!D18-'1) Kumulativní rozpočet'!G18,'1) Kumulativní rozpočet'!F18-'1) Kumulativní rozpočet'!G18*(1+('1) Kumulativní rozpočet'!E18/100)))","v":0},"CZN PP VP",{"$f":"P40","v":0}]
[null,null,null,"1.6.2.1 Zprůchodnění migračních překážek pro vodní živočichy a opatření k omezování jejich úmrtnosti",null,null,null,null,null,null,null,40,"1.6.6 Pořízení a náhrada monitorovacích systémů pro kontinuální měření emisí znečišťujících látek včetně pořízení on-line systémů k jejich prezentaci","7_6",null,{"$f":"IF((P32*('1) Kumulativní rozpočet'!#REF!))>15000000,15000000,(P32*('1) Kumulativní rozpočet'!I12+'1) Kumulativní rozpočet'!#REF!)))","v":{"$error":"#REF!"}},"% CZN max",{"$f":"P41","v":{"$error":"#REF!"}},{"$f":"R40-R41","v":{"$error":"#REF!"}},{"$f":"S41*1.21","v":{"$error":"#REF!"}}]
[null,null,null,"1.6.2.2 Zprůchodnění migračních překážek pro suchozemské živočichy a opatření k omezování jejich úmrtnosti",null,null,null,null,null,null,null,41,"1.6.7 Průzkum rozsahu znečištění horninového prostředí a rizik s ním spojených, včetně návrhu efektivního řešení","7_7"]
[null,null,null,null,null,null,null,null,null,null,null,42,"1.6.8 Odstranění rizik kontaminace ohrožující lidské zdraví, vodní zdroje nebo ekosystémy a rekultivace starých skládek","7_8",null,10000,21,{"$f":"P43*(1+(Q43/100))","v":12100},{"$f":"P43*(1+(Q43/100))+IF(P40>P41,P40-P41,0)","v":{"$error":"#REF!"}}]
[]
[null,null,null,"vyber Podaktivitu",null,null,null,null,null,null,null,null,null,null,null,null,null,null,{"$f":"P43*(Q43/100)+P43+IF(P40>P41,P40-P41,0)","v":{"$error":"#REF!"}}]
[null,null,null,"1.3.1.1.1 Vytváření a obnova tůní (mokřadů)"]
[null,null,null,"1.3.1.1.2 Malé vodní nádrže (MVN)",null,null,null,null,null,null,null,1,{"$f":"IF(AND($B$23=9,$B$24=1),D46,IF(AND($B$23=9,$B$24=2),D50,IF(AND($B$23=35,$B$24=1),D52,\"irelevantní\")))","v":"irelevantní"}]
[null,null,null,"1.3.1.1.3 Revitalizace a renaturace vodních toků a niv",null,null,null,null,null,null,null,null,{"$f":"IF(AND($B$23=9,$B$24=1),D47,IF(AND($B$23=9,$B$24=2),D51,IF(AND($B$23=35,$B$24=1),D53,\"irelevantní\")))","v":"irelevantní"}]
[null,null,null,"1.3.1.1.4 Nákup pozemků pro podporu renaturačních procesů a revitalizací vodních toků",null,null,null,null,null,null,null,null,{"$f":"IF(AND($B$23=9,$B$24=1),D48,\"irelevantní\")","v":"irelevantní"}]
[null,null,null,"1.3.1.2.1 Vegetační krajinné prvky (včetně skladebných prvků ÚSES)",null,null,null,null,null,null,null,null,{"$f":"IF(AND($B$23=9,$B$24=1),D49,\"irelevantní\")","v":"irelevantní"}]
[null,null,null,"1.3.1.2.2 Zavádění půdoochranných technologií"]
[null,null,null,"1.6.1.1.1 Péče o přírodní stanoviště a druhy, opatření na podporu ohrožených druhů"]
[null,null,null,"1.6.1.1.2 Předcházení, minimalizace a náprava škod způsobených vybranými zvláště chráněnými druhy živočichů"]
[]
[]
[{"$f":"IF(B56=TRUE,1,0)","v":0},false,"více opatření"]
[{"$f":"IF(B57=TRUE,1,0)","v":0},false,"více aktivit"]
[0,false,"více podaktivit",2,null,null,null,6,null,null,9]
[null,null,null,"vyber Opatření #2","vyber Opatření #3","vyber Opatření #4","vyber Opatření #5","vyber Opatření #6","vyber Opatření #7","vyber Opatření #8","vyber Opatření #9","vyber Opatření #10","vyber Opatření #11",null,null,"vyber Opatření #2",{"$f":"IF(P59=\"vyber Opatření #2\",0,1)","v":0}]
[null,null,null,{"$f":"CHOOSE($C$1,\"\",$M$2,$M$7,$M$10,$M$20,$M$25,$M$36)","v":""},"","","","","","","","","",null,null,"vyber Opatření #3",{"$f":"IF(P60=\"vyber Opatření #3\",0,1)","v":0}]
[null,null,null,{"$f":"CHOOSE($C$1,\"\",$M$3,$M$8,$M$11,$M$21,$M$26,$M$37)","v":""},"","","","","","","","","",null,null,"vyber Opatření #4",{"$f":"IF(P61=\"vyber Opatření #4\",0,1)","v":0}]
[null,null,null,{"$f":"CHOOSE($C$1,\"\",$M$4,$M$9,$M$12,$M$22,$M$27,$M$38)","v":""},"","","","","","","","","",null,null,"vyber Opatření #5",{"$f":"IF(P62=\"vyber Opatření #5\",0,1)","v":0}]
[null,null,null,{"$f":"CHOOSE($C$1,\"\",\"\",\"\",$M$13,$M$23,$M$28,$M$39)","v":""},"","","","","","","","","",null,null,null,{"$f":"SUM(Q59:Q62)","v":0}]
[null,null,null,{"$f":"CHOOSE($C$1,\"\",\"\",\"\",$M$14,$M$24,$M$29,$M$40)","v":""},"","","","","","","","","",null,null," "]
[null,null,null,{"$f":"CHOOSE($C$1,\"\",\"\",\"\",$M$15,\"\",$M$30,$M$41)","v":""},"","","","","","","","","",null,null,"vyber Aktivitu #2",{"$f":"IF(P65=\"vyber Aktivitu #2\",0,1)","v":0}]
[null,null,null,{"$f":"CHOOSE($C$1,\"\",\"\",\"\",$M$16,\"\",$M$31,$M$42)","v":""},"","","","","","","","","",null,null,"vyber Aktivitu #3",{"$f":"IF(P66=\"vyber Aktivitu #3\",0,1)","v":0}]
[null,null,null,{"$f":"CHOOSE($C$1,\"\",\"\",\"\",$M$17,\"\",$M$32,$M$43)","v":""},"","","","","","","","","",null,null,"vyber Aktivitu #4",{"$f":"IF(P67=\"vyber Aktivitu #4\",0,1)","v":0}]
[null,null,null,{"$f":"CHOOSE($C$1,\"\",\"\",\"\",$M$18,\"\",$M$33,\"\")","v":""},"","","","","","","","","",null,null,"vyber Aktivitu #5",{"$f":"IF(P68=\"vyber Aktivitu #5\",0,1)","v":0}]
[null,null,null,{"$f":"CHOOSE($C$1,\"\",\"\",\"\",$M$19,\"\",$M$34,\"\")","v":""},"","","","","","","","","",null,null,null,{"$f":"SUM(Q65:Q68)","v":0}]
[null,null,null,{"$f":"CHOOSE($C$1,\"\",\"\",\"\",\"\",\"\",$M$35,\"\")","v":""},"","","","","","","","","",null,null," "]
[null,null,null,null,null,null,null,null,null,null,null,null,null,null,null,"vyber Podaktivitu #2",{"$f":"IF(P71=\"vyber Podaktivitu #2\",0,1)","v":0}]
[null,null,null,"vyber Aktivitu #2","vyber Aktivitu #3","vyber Aktivitu #4","vyber Aktivitu #5",null,null,null,null,null,null,null,null,"vyber Podaktivitu #3",{"$f":"IF(P72=\"vyber Podaktivitu #3\",0,1)","v":0}]
[null,null,null,{"$f":"IF($B$23=9,$D$31,IF($B$23=35,$D$36,IF($B$23=36,$D$41,\"\")))","v":""},{"$f":"IF($B$23=9,$D$31,IF($B$23=35,$D$36,IF($B$23=36,$D$41,\"\")))","v":""},{"$f":"IF($B$23=9,$D$31,IF($B$23=35,$D$36,IF($B$23=36,$D$41,\"\")))","v":""},{"$f":"IF($B$23=9,$D$31,IF($B$23=35,$D$36,IF($B$23=36,$D$41,\"\")))","v":""},null,null,null,null,null,null,null,null,"vyber Podaktivitu #4",{"$f":"IF(P73=\"vyber Podaktivitu #4\",0,1)","v":0}]
[null,null,null,{"$f":"IF($B$23=9,$D$32,IF($B$23=35,$D$37,IF($B$23=36,$D$42,\"\")))","v":""},{"$f":"IF($B$23=9,$D$32,IF($B$23=35,$D$37,IF($B$23=36,$D$42,\"\")))","v":""},{"$f":"IF($B$23=9,$D$32,IF($B$23=35,$D$37,IF($B$23=36,$D$42,\"\")))","v":""},{"$f":"IF($B$23=9,$D$32,IF($B$23=35,$D$37,IF($B$23=36,$D$42,\"\")))","v":""},null,null,null,null,null,null,null,null,null,{"$f":"SUM(Q71:Q73)","v":0}]
[null,null,null,{"$f":"IF($B$23=9,$D$33,IF($B$23=35,$D$38,\"\"))","v":""},{"$f":"IF($B$23=9,$D$33,IF($B$23=35,$D$38,\"\"))","v":""},{"$f":"IF($B$23=9,$D$33,IF($B$23=35,$D$38,\"\"))","v":""},{"$f":"IF($B$23=9,$D$33,IF($B$23=35,$D$38,\"\"))","v":""}]
[null,null,null,{"$f":"IF($B$23=9,$D$34,IF($B$23=35,$D$39,\"\"))","v":""},{"$f":"IF($B$23=9,$D$34,IF($B$23=35,$D$39,\"\"))","v":""},{"$f":"IF($B$23=9,$D$34,IF($B$23=35,$D$39,\"\"))","v":""},{"$f":"IF($B$23=9,$D$34,IF($B$23=35,$D$39,\"\"))","v":""}]
[null,null,null,{"$f":"IF($B$23=9,$D$35,IF($B$23=35,$D$40,\"\"))","v":""},{"$f":"IF($B$23=9,$D$35,IF($B$23=35,$D$40,\"\"))","v":""},{"$f":"IF($B$23=9,$D$35,IF($B$23=35,$D$40,\"\"))","v":""},{"$f":"IF($B$23=9,$D$35,IF($B$23=35,$D$40,\"\"))","v":""}]
[]
[null,null,null,"vyber Podaktivitu #2","vyber Podaktivitu #3","vyber Podaktivitu #4"]
[null,null,null,{"$f":"IF(AND($B$23=9,$B$24=1),$D$46,IF(AND($B$23=9,$B$24=2),$D$50,IF(AND($B$23=35,$B$24=1),$D$52,\"irelevantní\")))","v":"irelevantní"},{"$f":"IF(AND($B$23=9,$B$24=1),$D$46,IF(AND($B$23=9,$B$24=2),$D$50,IF(AND($B$23=35,$B$24=1),$D$52,\"irelevantní\")))","v":"irelevantní"},{"$f":"IF(AND($B$23=9,$B$24=1),$D$46,IF(AND($B$23=9,$B$24=2),$D$50,IF(AND($B$23=35,$B$24=1),$D$52,\"irelevantní\")))","v":"irelevantní"}]
[null,null,null,{"$f":"IF(AND($B$23=9,$B$24=1),$D$47,IF(AND($B$23=9,$B$24=2),$D$51,IF(AND($B$23=35,$B$24=1),$D$53,\"irelevantní\")))","v":"irelevantní"},{"$f":"IF(AND($B$23=9,$B$24=1),$D$47,IF(AND($B$23=9,$B$24=2),$D$51,IF(AND($B$23=35,$B$24=1),$D$53,\"irelevantní\")))","v":"irelevantní"},{"$f":"IF(AND($B$23=9,$B$24=1),$D$47,IF(AND($B$23=9,$B$24=2),$D$51,IF(AND($B$23=35,$B$24=1),$D$53,\"irelevantní\")))","v":"irelevantní"}]
[null,null,null,{"$f":"IF(AND($B$23=9,$B$24=1),$D$48,\"\")","v":""},{"$f":"IF(AND($B$23=9,$B$24=1),$D$48,\"\")","v":""},{"$f":"IF(AND($B$23=9,$B$24=1),$D$48,\"\")","v":""}]
[null,null,null,{"$f":"IF(AND($B$23=9,$B$24=1),$D$49,\"\")","v":""},{"$f":"IF(AND($B$23=9,$B$24=1),$D$49,\"\")","v":""},{"$f":"IF(AND($B$23=9,$B$24=1),$D$49,\"\")","v":""}]

{"sheet":"KR výstup","index":2,"n_rows":36,"n_cols":4,"rows_kept":36,"cut":false,"hidden":true,"merged":[]}
[]
[]
[null,null,"Název žadatele:",0]
[null,null,"Název projektu:",0]
[null,null,"Specifický cíl:","Vyber Specifický cíl"]
[null,null,"Veřejná podpora:","mimo Veřejnou podporu"]
[null,null,"DPH uznatelnost:","Vyber"]
[null,null,"Velikost podniku:","irelevantní"]
[null,null,"Celkové náklady projektu","zadej výdaje/DPH"]
[null,null,"Celkové způsobilé výdaje projeku","zadej výdaje/DPH"]
[null,null,"Celkové nezpůsobilé výdaje projetku","zadej výdaje/DPH"]
[null,null,"Opatření specifického cíle (hlavní)","Vyber nejprve Specifický cíl a poté hlavní Opatření projektu"]
[null,null,"Opatření #2","vyber Opatření #2"]
[null,null,"Opatření #3","vyber Opatření #3"]
[null,null,"Opatření #4","vyber Opatření #4"]
[null,null,"Opatření #5","vyber Opatření #5"]
[null,null,"Opatření #6","vyber Opatření #6"]
[null,null,"Opatření #7","vyber Opatření #7"]
[null,null,"Opatření #8","vyber Opatření #8"]
[null,null,"Opatření #9","vyber Opatření #9"]
[null,null,"Opatření #10","vyber Opatření #10"]
[null,null,"Opatření #11","vyber Opatření #11"]
[null,null,"Aktivita (hlavní)","irelevantní"]
[null,null,"Aktivita #2","vyber Aktivitu #2"]
[null,null,"Aktivita #3","vyber Aktivitu #3"]
[null,null,"Aktivita #4","vyber Aktivitu #4"]
[null,null,"Aktivita #5","vyber Aktivitu #5"]
[null,null,"Podaktivita (hlavní)","irelevantní"]
[null,null,"Podaktivita #2","vyber Podaktivitu #2"]
[null,null,"Podaktivita #3","vyber Podaktivitu #3"]
[null,null,"Podaktivita #4","vyber Podaktivitu #4"]
[null,null,"ISKP Přímé inv. a neinv. náklady do limitu PS bez VP či VP s výpočtem paušálu (řádky 1.1.1.1 + 1.1.1.2)","zadej výdaje/DPH"]
[null,null,"ISKP Přímé inv. a neinv. náklady nad limit PS bez VP či VP s výpočtem paušálu nebo Přímé inv. a neinv. náklady s VP bez  výpočtu paušálu (řádky 1.1.3 a 1.1.4)","zadej výdaje/DPH"]
[null,null,"ISKP Nezpůsobilé inv. a neinv. náklady bez ohledu na VP (řádky 1.2.5 a 1.2.6)","zadej výdaje/DPH"]
[null,null,"Paušální sazba (bez VP či VP s výpočtem paušálu)",0]
[null,null,"\"Projektová příprava\" dle skutečných nákladů s limitem dle PS pro VP",0]

{"sheet":"2) Stanovení jednotkové podpory","index":3,"n_rows":44,"n_cols":14,"rows_kept":44,"cut":false,"hidden":false,"merged":[[0,2,1,7],[21,6,21,7],[29,6,29,7],[24,1,26,1],[33,3,33,7],[2,2,2,6],[3,2,3,6],[12,1,13,1],[14,1,17,1],[31,3,31,7]]}
["Identifikace projektu",null,"Poznámka k vyplnění: Tabulka je optimalizována pro MS Excel 2010 a vyšší. Použití starší verze či jiného programu může způsobit problémy. Editujte pouze zelené buňky a zaškrtávací políčka, vybírejte z rozbalovacích menu. Řiďte se informacemi označenými červeným trojúhelníkem v pravém horním rohu buněk."]
[]
[null,"Název žadatele",{"$f":"'1) Kumulativní rozpočet'!C5:F5","v":0}]
[null,"Název projektu",{"$f":"'1) Kumulativní rozpočet'!C6:F6","v":0}]
[null,"Číslo výzvy",1]
[]
[null,"Památkově chráněná budova","NE"]
[null,"Budova sloužící pro výchovu a vzdělávání dětí a mladistvých","ANO"]
[null,"DPH je v rámci projektu způsobilým výdajem",{"$f":"IF('KR zdroj'!$P$26=4,\"Nezvoleno na 1. listu\",IF('KR zdroj'!$P$26=2,\"NE\",\"ANO\"))","v":"NE"}]
[null,"Stanovte příslušnou procentní výši DPH pro realizaci",{"$f":"'1) Kumulativní rozpočet'!E12/100","v":0.21}]
[true,"a) Instalace nuceného větrání s rekuperací"]
[null,null,null,null,null,"vlastní jednotkový  náklad Kč bez DPH/jedn.","hodnota","jednotka","jednotkový náklad bez DPH","k1","k2","jednotková dotace za opatření bez DPH","celková dotace za opatření bez DPH","Způsobilé přímé realizační výdaje"]
[null,"Celkový výkon nově instalovaných systémů nuceného větrání  - výukové prostory vzdělávacích budov","výkon na jednotku do 1500 m3",null,false,null,null,"počet žáků",{"$f":"'SJP Pomocné hodnoty'!F17","v":9800},{"$f":"IF(A11=TRUE,'SJP Pomocné hodnoty'!G17+'SJP Pomocné hodnoty'!H17,'SJP Pomocné hodnoty'!G17)","v":0.6},{"$f":"'SJP Pomocné hodnoty'!R17","v":0.6},{"$f":"IF(AND($C$7=\"ANO\",E13=TRUE),F13,I13)*J13*K13","v":3528},{"$f":"G13*L13","v":0},{"$f":"G13*IF(E13=TRUE,F13,I13)*J13","v":0}]
[null,null,"výkon na jednotku nad 1500 m3",null,false,null,null,"počet žáků",{"$f":"'SJP Pomocné hodnoty'!F18","v":9800},{"$f":"IF(A12=TRUE,'SJP Pomocné hodnoty'!G18+'SJP Pomocné hodnoty'!H18,'SJP Pomocné hodnoty'!G18)","v":1},{"$f":"'SJP Pomocné hodnoty'!R18","v":0.6},{"$f":"IF(AND($C$7=\"ANO\",E14=TRUE),F14,I14)*J14*K14","v":5880},0,{"$f":"G14*IF(E14=TRUE,F14,I14)*J14","v":0}]
[null,"Celkový výkon nově instalovaných systémů nuceného větrání s rekuperací - ostatní","výkon na jednotku do 1500 m3",null,false,null,null,"m3/hod",{"$f":"'SJP Pomocné hodnoty'!F19","v":390},{"$f":"IF(A13=TRUE,'SJP Pomocné hodnoty'!G19+'SJP Pomocné hodnoty'!H19,'SJP Pomocné hodnoty'!G19)","v":0.6},{"$f":"'SJP Pomocné hodnoty'!R19","v":0.6},140.4,0,0]
[null,null,"výkon na jednotku nad 1500 m3 - regulace průtoku ON/OFF",null,false,null,null,"m3/hod",{"$f":"'SJP Pomocné hodnoty'!F20","v":390},{"$f":"IF(A14=TRUE,'SJP Pomocné hodnoty'!G20+'SJP Pomocné hodnoty'!H20,'SJP Pomocné hodnoty'!G20)","v":0.5},{"$f":"'SJP Pomocné hodnoty'!R20","v":0.6},117,0,0]
[null,null,"výkon na jednotku nad 1500 m3 - regulace průtoku dle času, % výkonu jednotky a ostatní neuvedené",null,false,null,null,"m3/hod",{"$f":"'SJP Pomocné hodnoty'!F21","v":390},{"$f":"IF(A15=TRUE,'SJP Pomocné hodnoty'!G21+'SJP Pomocné hodnoty'!H21,'SJP Pomocné hodnoty'!G21)","v":0.7},{"$f":"'SJP Pomocné hodnoty'!R21","v":0.6},163.79999999999998,0,0]
[null,null,"výkon na jednotku nad 1500 m3 - plynulá regulace, např. CO2",null,false,null,null,"m3/hod",{"$f":"'SJP Pomocné hodnoty'!F22","v":390},{"$f":"IF(A16=TRUE,'SJP Pomocné hodnoty'!G22+'SJP Pomocné hodnoty'!H22,'SJP Pomocné hodnoty'!G22)","v":1},{"$f":"'SJP Pomocné hodnoty'!R22","v":0.6},234,0,0]
[]
[null,null,null,false]
[]
[null,"Celková dotace za opatření 2.1",null,null,null,null,{"$f":"IF(A11<>TRUE,0,IF($C$9<>\"ANO\",SUM(M13:M18),SUM(M13:M18)*(1+$C$10)))","v":0}]
[false,"b) Zlepšení kvality vnitřního prostředí"]
[null,null,null,null,null,"vlastní jednotkový  náklad Kč bez DPH/jedn.","hodnota","jednotka","jednotkový náklad bez DPH","k1","k2","jednotková dotace za opatření bez DPH","celková dotace za opatření bez DPH","Způsobilé přímé realizační výdaje"]
[null,"Plocha výplní otvorů stíněných nově instalovanými vnějšími nebo meziokenními stínícími prvky orientovanými s odklonem větším než 25°od severu","ruční mechanické ovládání",null,false,null,null,"m2",{"$f":"'SJP Pomocné hodnoty'!F24","v":3700},{"$f":"'SJP Pomocné hodnoty'!G24","v":0.6},{"$f":"'SJP Pomocné hodnoty'!R24","v":0.6},{"$f":"IF(AND($C$7=\"ANO\",E25=TRUE),F25,I25)*J25*K25","v":1332},{"$f":"G25*L25","v":0},{"$f":"G25*IF(E25=TRUE,F25,I25)*J25","v":0}]
[null,null,"ruční elektronické ovládání",null,false,null,null,"m2",{"$f":"'SJP Pomocné hodnoty'!F25","v":3700},{"$f":"'SJP Pomocné hodnoty'!G25","v":0.9},{"$f":"'SJP Pomocné hodnoty'!R25","v":0.6},{"$f":"IF(AND($C$7=\"ANO\",E26=TRUE),F26,I26)*J26*K26","v":1998},{"$f":"G26*L26","v":0},{"$f":"G26*IF(E26=TRUE,F26,I26)*J26","v":0}]
[null,null,"automat. ovlád. na základě meteostanice s rozdělením orientace vůči svět. stranám",null,false,null,null,"m2",{"$f":"'SJP Pomocné hodnoty'!F26","v":3700},{"$f":"'SJP Pomocné hodnoty'!G26","v":1},{"$f":"'SJP Pomocné hodnoty'!R26","v":0.6},2220,{"$f":"G27*L27","v":0},0]
[]
[]
[null,"Celková dotace za opatření 2.2",null,null,null,null,{"$f":"IF(A11<>TRUE,0,IF($C$9<>\"ANO\",SUM(M25:M27),SUM(M25:M27)*(1+$C$10)))","v":0}]
[]
["Celkové způsobilé přímé realizační výdaje („CZPRV“)",null,null,{"$f":"IF($C$9<>\"ANO\",IF(A11<>TRUE,0,SUM(N13:N18))+IF(A23<>TRUE,0,SUM(N25:N27)),(IF(A11<>TRUE,0,SUM(N13:N18)*(1+$C$10))+IF(A23<>TRUE,0,SUM(N25:N27))*(1+$C$10)))","v":0}]
[]
["Celková výše podpory na realizaci",null,null,{"$f":"G22+G30","v":0}]
[]
[]
[]
[]
[]
[]
[]
[]
[null,null,null,null,null,null,null,"Invented by: Polak & Vrbický"]
[null,null,null,null,null,null,null,"Created by: Urban"]

{"sheet":"SJP Pomocné hodnoty","index":4,"n_rows":29,"n_cols":18,"rows_kept":29,"cut":false,"hidden":true,"merged":[[23,0,25,0],[16,0,17,0],[18,0,21,0]]}
["A",null,null,null,null,null,"Číselník pro obecné parametry"]
["Úspora primární energie z neobnovitelných zdrojů",null,0.3,0.4,null,null,1,"Nepam",null,{"$f":"IF('2) Stanovení jednotkové podpory'!$C$7=\"NE\",IF('2) Stanovení jednotkové podpory'!$C$8=\"NE\",IF(AND('2) Stanovení jednotkové podpory'!#REF!=FALSE,'2) Stanovení jednotkové podpory'!#REF!=FALSE),1,3),IF(AND('2) Stanovení jednotkové podpory'!#REF!=FALSE,'2) Stanovení jednotkové podpory'!#REF!=FALSE),2,4)),IF('2) Stanovení jednotkové podpory'!$C$8=\"NE\",IF(AND('2) Stanovení jednotkové podpory'!#REF!=FALSE,#REF!=FALSE),5,7),IF(AND('2) Stanovení jednotkové podpory'!#REF!=FALSE,'2) Stanovení jednotkové podpory'!#REF!=FALSE,'2) Stanovení jednotkové podpory'!#REF!=FALSE),6,8)))","v":{"$error":"#REF!"}}]
["Dosažená hodnota primární energie z neobnovitelných zdrojů dle PENB pro stav po realizaci navržených opatření",null,0.85,0.7,null,null,2,"Nepam škola"]
["Průměrný součinitel prostupu tepla obálky budovy",null,0.95,0.8,null,null,3,"Nepam EPC"]
["Součinitel prostupu tepla pro měněné stavební prvky vyjma oken, na něž se vztahuje podpora",null,null,null,null,null,4,"Nepam škola EPC"]
["Součinitel prostupu tepla oken, na něž se vztahuje podpora",null,0.15,null,null,null,5,"Pam"]
["Nejvyšší denní teplota vzduchu v místnosti v letním období ",null,0.21,null,null,null,6,"Pam škola "]
["Koncept větrání",null,null,null,null,null,7,"Pam EPC"]
[null,null,"ANO",null,null,null,8,"Pam škola EPC"]
[null,null,"NE"]
[{"$f":"IF('2) Stanovení jednotkové podpory'!$A$11=TRUE,1,0)+IF('2) Stanovení jednotkové podpory'!$A$23=TRUE,1,0)+IF('2) Stanovení jednotkové podpory'!#REF!=TRUE,1,0)+IF('2) Stanovení jednotkové podpory'!#REF!=TRUE,1,0)","v":{"$error":"#REF!"}},"počet specifických cílů dotčených projektem"]
[null,"Specifický cíl 1.2 (po zatržení je nutno vybrat jedno z opatření v rozbalovacím menu u této buňky vpravo)"]
[null,"1.2.1 Výstavba a rekonstrukce obnovitelných zdrojů energie pro veřejné budovy"]
[null,"1.2.2 Výstavba a rekonstrukce obnovitelných zdrojů energie pro zajištění dodávek systémové energie ve veřejném sektoru"]
[]
[null,null,null,null,null,"jednotkové náklady bez DPH","k1",null,null,null,null,null,null,null,null,null,null,"k2"]
["Celkový výkon nově instalovaných systémů nuceného větrání  - výukové prostory vzdělávacích budov","výkon na jednotku do 1500 m3",null,null,null,9800,0.6,null,null,null,null,null,null,null,null,null,null,0.6]
[null,"výkon na jednotku nad 1500 m3",null,null,null,9800,1,null,null,null,null,null,null,null,null,null,null,{"$f":"$R$17","v":0.6}]
["Celkový výkon nově instalovaných systémů nuceného větrání s rekuperací - ostatní","výkon na jednotku do 1500 m3",null,null,null,390,0.6,null,null,null,null,null,null,null,null,null,null,{"$f":"$R$17","v":0.6}]
[null,"výkon na jednotku nad 1500 m3 - regulace průtoku ON/OFF",null,null,null,390,0.5,null,null,null,null,null,null,null,null,null,null,0.6]
[null,"výkon na jednotku nad 1500 m3 - regulace průtoku dle času, % výkonu jednotky a ostatní neuvedené",null,null,null,390,0.7,null,null,null,null,null,null,null,null,null,null,0.6]
[null,"výkon na jednotku nad 1500 m3 - plynulá regulace, např. CO2",null,null,null,390,1,null,null,null,null,null,null,null,null,null,null,0.6]
["C"]
["Plocha výplní otvorů stíněných nově instalovanými vnějšími stínícími prvky orientovanými s odklonem větším než 25°od severu","ruční mechanické ovládání",null,null,null,3700,0.6,"0,6 - ruční mechanické ovládání",null,null,null,null,null,null,null,null,null,0.6]
[null,"ruční elektronické ovládání",null,null,null,3700,0.9,"0,9 - ruční elektronické ovládání",null,null,null,null,null,null,null,null,null,0.6]
[null,"automatické ovládání na základě meteostanice s rozdělením orientace vůči světovým stranám",null,null,null,3700,1,"1,0 - automatické ovládání na základě meteostanice s rozdělením orientace vůči světovým stranám",null,null,null,null,null,null,null,null,null,0.6]
[]
["ANO"]
["NE"]

{"sheet":"3) Výsledná podpora v AIS","index":5,"n_rows":37,"n_cols":13,"rows_kept":37,"cut":false,"hidden":false,"merged":[[32,1,32,6],[18,6,18,7],[19,6,19,7],[21,6,21,7],[23,6,23,7],[32,7,32,8],[18,8,18,10],[19,8,19,10],[21,8,21,10],[23,8,23,10],[23,0,23,3],[19,4,19,5],[21,4,21,5],[18,4,18,5],[23,4,23,5],[32,9,32,10],[34,7,34,8],[34,9,34,10],[36,7,36,8],[36,9,36,10]]}
["Veřejná podpora"]
[]
["Typ veřejné podpory"]
[1]
[]
[null,null,null,null,null,null,null,null,"Stanovení výše podpory pro De minimis"]
[]
[null,null,null,null,null,null,null,null,"Předchozí čerpání de minimis v €"]
[null,null,null,null,null,null,null,null,"Aktuální kurz €",null,null,null,"https://commission.europa.eu/funding-tenders/procedures-guidelines-tenders/information-contractors-and-beneficiaries/exchange-rate-inforeuro_cs"]
[null,null,null,null,null,null,null,null,"Limit pro čerpání v Kč",null,null,{"$f":"IF(A4=2,(300000-L8)*L9,IF(A4=3,(750000-L8)*L9,\"\"))","v":""}]
[]
[]
[]
[null,null,null,null,false]
[]
[]
["Porovnání celkové podpory projektu dle pravidel výzvy a pravidel veřejné podpory"]
[]
[null,null,null,null,"Realizace",null,"PP+AD+TDI",null,"Celkem"]
["Dle pravidel výzvy",null,null,null,{"$f":"IF('1) Kumulativní rozpočet'!D12=0,0,MIN('1) Kumulativní rozpočet'!I13*0.85,'2) Stanovení jednotkové podpory'!D34))","v":0},null,{"$f":"IF('1) Kumulativní rozpočet'!D12=0,0,IF('2) Stanovení jednotkové podpory'!D32>'1) Kumulativní rozpočet'!I14,(IF(MIN('1) Kumulativní rozpočet'!I13,'2) Stanovení jednotkové podpory'!D32)>10000000,0.035,IF(MIN('1) Kumulativní rozpočet'!I13,'2) Stanovení jednotkové podpory'!D32)>3000000,0.05,0.07))*MIN('1) Kumulativní rozpočet'!I13,'2) Stanovení jednotkové podpory'!D32))*0.85,(IF(MIN('1) Kumulativní rozpočet'!I13,'2) Stanovení jednotkové podpory'!D32)>10000000,0.035,IF(MIN('1) Kumulativní rozpočet'!I13,'2) Stanovení jednotkové podpory'!D32)>3000000,0.05,0.07))*MIN('1) Kumulativní rozpočet'!I13,'2) Stanovení jednotkové podpory'!D32))))","v":0},null,{"$f":"SUM(E20:G20)","v":0}]
[]
["Dle pravidel veřejné podpory",null,null,null,{"$f":"IF('1) Kumulativní rozpočet'!D12=0,\"\",IF($A$4=1,\"Irelevantní\",IF(OR($A$4=2,$A$4=3),IF(I20>L10,IF(L10<E20,L10,E20),E20),'2) Stanovení jednotkové podpory'!D32*IF($A$4=5,IF(A9=1,IF(A12=3,'VP pomocné hodnoty'!D25,IF(A12=2,'VP pomocné hodnoty'!D26,'VP pomocné hodnoty'!D27)),IF(A9=2,IF(A12=3,'VP pomocné hodnoty'!E25,IF(A12=2,'VP pomocné hodnoty'!E26,'VP pomocné hodnoty'!E27)),IF(A12=3,'VP pomocné hodnoty'!F25,IF(A12=2,'VP pomocné hodnoty'!F26,'VP pomocné hodnoty'!F27)))),IF($A$4=6,IF(A9=1,IF(A12=3,'VP pomocné hodnoty'!D28,IF(A12=2,'VP pomocné hodnoty'!D29,'VP pomocné hodnoty'!D30)),IF(A9=2,IF(A12=3,'VP pomocné hodnoty'!E28,IF(A12=2,'VP pomocné hodnoty'!E29,'VP pomocné hodnoty'!E30)),IF(A12=3,'VP pomocné hodnoty'!F28,IF(A12=2,'VP pomocné hodnoty'!F29,'VP pomocné hodnoty'!F30)))),IF(A4=7,IF(A9=1,IF(A12=3,'VP pomocné hodnoty'!D31,IF(A12=2,'VP pomocné hodnoty'!D32,'VP pomocné hodnoty'!D33)),IF(A9=2,IF(A12=3,'VP pomocné hodnoty'!E31,IF(A12=2,'VP pomocné hodnoty'!E32,'VP pomocné hodnoty'!E33)),IF(A12=3,'VP pomocné hodnoty'!F31,IF(A12=2,'VP pomocné hodnoty'!F32,'VP pomocné hodnoty'!F33)))),1))))))","v":""},null,{"$f":"IF('1) Kumulativní rozpočet'!D12=0,\"\",IF($A$4=1,\"Irelevantní\",'2) Stanovení jednotkové podpory'!D32*IF('2) Stanovení jednotkové podpory'!D32>10000000,0.035,IF('2) Stanovení jednotkové podpory'!D32>3000000,0.05,0.07))*IF($A$4=5,IF(A9=1,IF(A12=3,'VP pomocné hodnoty'!D25,IF(A12=2,'VP pomocné hodnoty'!D26,'VP pomocné hodnoty'!D27)),IF(A9=2,IF(A12=3,'VP pomocné hodnoty'!E25,IF(A12=2,'VP pomocné hodnoty'!E26,'VP pomocné hodnoty'!E27)),IF(A12=3,'VP pomocné hodnoty'!F25,IF(A12=2,'VP pomocné hodnoty'!F26,'VP pomocné hodnoty'!F27)))),IF($A$4=6,IF(A9=1,IF(A12=3,'VP pomocné hodnoty'!D28,IF(A12=2,'VP pomocné hodnoty'!D29,'VP pomocné hodnoty'!D30)),IF(A9=2,IF(A12=3,'VP pomocné hodnoty'!E28,IF(A12=2,'VP pomocné hodnoty'!E29,'VP pomocné hodnoty'!E30)),IF(A12=3,'VP pomocné hodnoty'!F28,IF(A12=2,'VP pomocné hodnoty'!F29,'VP pomocné hodnoty'!F30)))),IF(A4=7,IF(A9=1,IF(A12=3,'VP pomocné hodnoty'!D31,IF(A12=2,'VP pomocné hodnoty'!D32,'VP pomocné hodnoty'!D33)),IF(A9=2,IF(A12=3,'VP pomocné hodnoty'!E31,IF(A12=2,'VP pomocné hodnoty'!E32,'VP pomocné hodnoty'!E33)),IF(A12=3,'VP pomocné hodnoty'!F31,IF(A12=2,'VP pomocné hodnoty'!F32,'VP pomocné hodnoty'!F33)))),IF(OR($A$4=2,$A$4=3),IF((I20)>L10,IF(E20<L10,(L10-E20)/'2) Stanovení jednotkové podpory'!D32,0),1),1))))))","v":""},null,{"$f":"IF('1) Kumulativní rozpočet'!D12=0,\"\",SUM(E22:G22))","v":""}]
[]
["Výsledná celková podpora za projekt",null,null,null,{"$f":"MIN(E20,E22)","v":0},null,{"$f":"MIN(G20,G22)","v":0},null,{"$f":"SUM(E24:G24)","v":0}]
[]
[]
["Rozpočet v AIS"]
[]
[]
[]
[]
[]
[">    1.",">    Celkové výdaje",null,null,null,null,null,{"$f":"H37+H35","v":0},null,{"$f":"J35+J37","v":0}]
[]
[">>  1.1.1 + 1.2.1",">>   Celkové výdaje - Realizační",null,null,null,null,null,{"$f":"'1) Kumulativní rozpočet'!F13","v":0},null,{"$f":"MIN('1) Kumulativní rozpočet'!I13,'2) Stanovení jednotkové podpory'!D32)","v":0},null,"POZOR, v rozpočtu v AIS nutno tutu položku rozdělit na investiční a neinvestiční část"]
[]
[">>  1.1.2 + 1.2.2",">>   Celkové výdaje - Projektová příprava, autorský a technický dozor",null,null,null,null,null,{"$f":"'1) Kumulativní rozpočet'!D17","v":0},null,{"$f":"IF('1) Kumulativní rozpočet'!I13<'2) Stanovení jednotkové podpory'!D32,H37,'2) Stanovení jednotkové podpory'!D32*IF('2) Stanovení jednotkové podpory'!D32>10000000,0.035,IF('2) Stanovení jednotkové podpory'!D32>3000000,0.05,0.07)))","v":0},null,"POZOR, v rozpočtu v AIS nutno tutu položku rozdělit na investiční a neinvestiční část"]

{"sheet":"VP pomocné hodnoty","index":6,"n_rows":42,"n_cols":11,"rows_kept":42,"cut":false,"hidden":true,"merged":[[21,3,22,3],[21,4,22,4],[21,5,22,5],[21,6,22,6],[24,6,26,6],[36,1,36,2],[37,1,37,2],[38,1,38,2],[19,1,19,2],[20,1,20,2],[21,1,22,2],[23,1,23,2],[27,6,29,6],[33,1,35,1],[30,1,32,1],[27,1,29,1],[24,1,26,1],[30,6,32,6],[33,6,35,6]]}
[1,"mimo rámec veřejné podpory"]
[2,"De minimis 1407/2013"]
[3,"De minimis 360/2012 (SOHZ)"]
[4,"Rozhodnutí SOHZ"]
[5,"GBER (článek 38) Investiční podpora na opatření ke zvýšení energetické účinnosti "]
[6,"GBER (článek 40) Investiční podpora na vysokoúčinnou kombinovanou výrobu tepla a elektrické energie"]
[7,"GBER (článek 41) Investiční podpora energie z obnovitelných zdrojů"]
[8,"GBER (článek 53) Podpora kultury a zachování kulturního dědictví "]
[9,"GBER (článek 55) Podpora na sportovní a multifunkční rekreační infrastrukturu"]
[10,"GBER (článek 56) Investiční podpora na místní infrastrukturu"]
[]
[1,"Malý podnik"]
[2,"Střední podnik"]
[3,"Velký podnik a ostatní"]
[]
[1,"Praha (bez bonifikace)"]
[2,"regiony dle čl. 107 odst. 3 písm. a) Smlouvy o fungování EU"]
[3,"regiony dle čl. 107 odst. 3 písm. c) Smlouvy o fungování EU"]
[]
[null,"Předpis/článek",null,"Max VP v Praze","Max VP pro regiony dle čl. 107 odst. 3 písm. a) Smlouvy o fungování EU (1)","Max VP pro regiony dle čl. 107 odst. 3 písm.  c) Smlouvy o fungování EU (2)","Notifikační práh "]
[null,"De minimis 1407/2013",null,1,1,1,"n/r"]
[null,"De minimis 360/2012",null,1,1,1,"n/r"]
[]
[null,"Rozhodnutí SOHZ (1)",null,1,1,1,"n/r"]
[null,"GBER 38","VP a O",0.3,{"$f":"CHOOSE(K26,0.45,0.4,0.6)","v":{"$error":"#REF!"}},{"$f":"CHOOSE(K26,0.35,0.3,0.5)","v":{"$error":"#REF!"}},"15 mil. EUR na podnik a projekt",null,"počet opatření",null,{"$f":"IF(COUNTIF('2) Stanovení jednotkové podpory'!#REF!,\"<0\")+COUNTIF('2) Stanovení jednotkové podpory'!#REF!,\">0\")>0,1,0)+IF(COUNTIF('2) Stanovení jednotkové podpory'!#REF!,\"<0\")+COUNTIF('2) Stanovení jednotkové podpory'!#REF!,\">0\")>0,1,0)+IF(COUNTIF('2) Stanovení jednotkové podpory'!#REF!,\"<0\")+COUNTIF('2) Stanovení jednotkové podpory'!#REF!,\">0\")>0,1,0)+IF(COUNTIF('2) Stanovení jednotkové podpory'!#REF!,\"<0\")+COUNTIF('2) Stanovení jednotkové podpory'!#REF!,\">0\")>0,1,0)+IF(COUNTIF('2) Stanovení jednotkové podpory'!#REF!,\"<0\")+COUNTIF('2) Stanovení jednotkové podpory'!#REF!,\">0\")>0,1,0)+IF(COUNTIF('2) Stanovení jednotkové podpory'!#REF!,\"<0\")+COUNTIF('2) Stanovení jednotkové podpory'!#REF!,\">0\")>0,1,0)+IF(COUNTIF('2) Stanovení jednotkové podpory'!#REF!,\"<0\")+COUNTIF('2) Stanovení jednotkové podpory'!#REF!,\">0\")>0,1,0)","v":{"$error":"#REF!"}}]
[null,null,"SP",{"$f":"D25+0.1","v":0.4},{"$f":"E25+0.1","v":{"$error":"#REF!"}},{"$error":"#REF!"},null,"stanovení výše podpory GBER 38",null,null,{"$f":"IF('2) Stanovení jednotkové podpory'!A11=TRUE,IF(K25<2,2,IF('2) Stanovení jednotkové podpory'!#REF!/'2) Stanovení jednotkové podpory'!#REF!<=0.6,3,1)),1)","v":{"$error":"#REF!"}}]
[null,null,"MP",{"$f":"D25+0.2","v":0.5},{"$f":"E25+0.2","v":{"$error":"#REF!"}},{"$error":"#REF!"}]
[null,"GBER 40","VP a O",0.45,0.6,0.5,"15 mil. EUR na podnik a projekt"]
[null,null,"SP",{"$f":"D28+0.1","v":0.55000000000000004},{"$f":"E28+0.1","v":0.7},0.6]
[null,null,"MP",{"$f":"D28+0.2","v":0.65},{"$f":"E28+0.2","v":0.8},0.7]
[null,"GBER 41","VP a O",0,0.45,0.45,"15 mil. EUR na podnik a projekt","upraveno po změně limitů GBER"]
[null,null,"SP",0,{"$f":"E31+0.1","v":0.55000000000000004},0.55000000000000004,null,"upraveno po změně limitů GBER"]
[null,null,"MP",0,{"$f":"E31+0.2","v":0.65},0.65,null,"upraveno po změně limitů GBER"]
[null,"GBER 41 – malá zařízení","VP a O",0.3,0.45,0.35,"15 mil. EUR na podnik a projekt"]
[null,null,"SP",{"$f":"D34+0.1","v":0.4},{"$f":"E34+0.1","v":0.55000000000000004},0.44999999999999996]
[null,null,"MP",{"$f":"D34+0.2","v":0.5},{"$f":"E34+0.2","v":0.65},0.55000000000000004]
[null,"GBER 53",null,1,1,1,"150 mil. EUR na projekt"]
[null,"GBER 55",null,1,1,1,"30 mil. EUR nebo CZV nepřesáhnou 100 mil. EUR"]
[null,"GBER 56",null,1,1,1,"10 mil. EUR nebo výdaje na projekt přesahující 20 mil. EUR"]
[]
[]
[null,"(1) Pouze pro subjekty pověřené výkonem služby v obecném hospodářském zájmu."]